[Event "106th British-ch Major 2019"]
[Site "Torquay"]
[Date "2019.08.01"]
[Round "6.5"]
[White "Barton, R Alan"]
[Black "Payne, Matthew J"]
[Result "0-1"]
[ECO "D03"]
[WhiteElo "1941"]
[BlackElo "2168"]
[Annotator "NA"]
[PlyCount "56"]
[EventDate "2019.07.27"]
[EventType "swiss"]
[EventCountry "GBR"]
[SourceTitle "playchess.com"]
[Source "ChessBase"]
[SourceQuality "1"]
[TimeControl "40/5400+30:1800+30"]

1. d4 {[%emt 0:00:00]} Nf6 {[%emt 0:00:00]} 2. Bg5 {[%emt 0:00:16]} e6 {[%emt 0:00:01]} 3. Nf3 {[%emt 0:02:09]} Be7 {[%emt 0:04:43]} 4. Nbd2 {[%emt 0:00:34]} O-O {[%emt 0:02:40]} 5. e3 {[%emt 0:00:21]} d5 {[%emt 0:02:00]} 6. Bd3 {[%emt 0:00:37]} c5 {[%emt 0:01:45]} 7. c3 {[%emt 0:00:29]} b6 {[%emt 0:00:53]} 8. Qe2 {[%emt 0:02:11]} Bb7 {[%emt 0:03:35]} 9. Ne5 {[%emt 0:04:25]} Ne4 {[%emt 0:08:57]} 10. Bxe7 {[%emt 0:03:07]} Qxe7 {[%emt 0:02:39]} 11. h4 {[%emt 0:11:08]} f6 {[%emt 0:06:11]} 12. Nef3 {[%emt 0:05:02]} Nd7 {[%emt 0:00:28]} 13. g4 {[%emt 0:07:21]} Rac8 {[%emt 0:14:16]} 14. Rh3 {[%emt 0:07:59]} c4 {[%emt 0:09:10]} 15. Bc2 {[%emt 0:02:03]} b5 {[%emt 0:00:06]} 16. a3 {[%emt 0:03:22]} a5 {[%emt 0:00:26]} 17. h5 {[%emt 0:02:58]} b4 {[%emt 0:05:51]} 18. axb4 {[%emt 0:03:54]} axb4 {[%emt 0:00:07]} 19. Nxe4 {[%emt 0:02:38]} dxe4 {[%emt 0:00:11]} 20. Nh4 {[%emt 0:01:26]} bxc3 {[%emt 0:09:41]} 21. bxc3 {[%emt 0:00:22]} Ra8 {[%emt 0:01:08]} 22. Rxa8 {[%emt 0:10:23]} Rxa8 {[%emt 0:00:12]} 23. Qxc4 {[%emt 0:00:28]} Ra1+ {[%emt 0:00:05]} 24. Kd2 {[%emt 0:01:03]} Qa3 {[%emt 0:00:10]} 25. Qxe6+ {[%emt 0:03:00]} Kf8 {[%emt 0:00:07]} 26. Bxe4 {[%emt 0:19:57]} Qc1+ {[%emt 0:01:21]} 27. Kd3 {[%emt 0:01:07]} Qf1+ {[%emt 0:00:04]} 28. Kd2 {[%emt 0:02:27]} Qd1# {[%emt 0:00:41]} 0-1

[Event "106th British-ch Major 2019"]
[Site "Torquay"]
[Date "2019.08.01"]
[Round "6.6"]
[White "Lentzos, Ioannis"]
[Black "Forster, Matthew"]
[Result "1/2-1/2"]
[ECO "B28"]
[WhiteElo "2043"]
[BlackElo "1825"]
[Annotator "NA"]
[PlyCount "56"]
[EventDate "2019.07.27"]
[EventType "swiss"]
[EventCountry "GBR"]
[SourceTitle "playchess.com"]
[Source "ChessBase"]
[SourceQuality "1"]
[TimeControl "40/5400+30:1800+30"]

1. e4 {[%emt 0:00:00]} c5 {[%emt 0:00:00]} 2. Nf3 {[%emt 0:00:00]} a6 {[%emt 0:01:08]} 3. g3 {[%emt 0:06:49]} g6 {[%emt 0:00:44]} 4. Bg2 {[%emt 0:01:03]} Bg7 {[%emt 0:00:33]} 5. O-O {[%emt 0:00:23]} Nc6 {[%emt 0:00:07]} 6. d3 {[%emt 0:01:14]} d6 {[%emt 0:00:38]} 7. c3 {[%emt 0:00:49]} e5 {[%emt 0:01:13]} 8. a4 {[%emt 0:03:43]} Nge7 {[%emt 0:00:42]} 9. Na3 {[%emt 0:00:55]} O-O {[%emt 0:01:01]} 10. Nc4 {[%emt 0:03:39]} Rb8 {[%emt 0:06:16]} 11. a5 {[%emt 0:23:47]} Be6 {[%emt 0:01:42]} 12. b4 {[%emt 0:11:41]} d5 {[%emt 0:04:30]} 13. exd5 {[%emt 0:01:13]} Bxd5 {[%emt 0:03:11]} 14. bxc5 {[%emt 0:12:02]} e4 {[%emt 0:05:00]} 15. Nd4 {[%emt 0:00:24]} exd3 {[%emt 0:03:44]} 16. Qxd3 {[%emt 0:01:58]} Bxg2 {[%emt 0:00:50]} 17. Kxg2 {[%emt 0:00:04]} Nxd4 {[%emt 0:00:50]} 18. cxd4 {[%emt 0:00:23]} Bxd4 {[%emt 0:00:51]} 19. Rb1 {[%emt 0:07:29]} Bxc5 {[%emt 0:00:47]} 20. Qxd8 {[%emt 0:00:11]} Rfxd8 {[%emt 0:01:06]} 21. Bf4 {[%emt 0:00:14]} Rbc8 {[%emt 0:00:55]} 22. Rxb7 {[%emt 0:00:20]} Nd5 {[%emt 0:03:45]} 23. Bg5 {[%emt 0:00:16]} f6 {[%emt 0:01:04]} 24. Be3 {[%emt 0:02:18]} Nxe3+ {[%emt 0:01:36]} 25. Nxe3 {[%emt 0:00:04]} Rb8 {[%emt 0:00:57]} 26. Rfb1 {[%emt 0:01:15]} Rxb7 {[%emt 0:00:59]} 27. Rxb7 {[%emt 0:00:03]} Rd2 {[%emt 0:01:01]} 28. Ng4 {[%emt 0:07:25]} Rd6 {[%emt 0:01:14]} 1/2-1/2

[Event "106th British-ch Major 2019"]
[Site "Torquay"]
[Date "2019.08.01"]
[Round "6.7"]
[White "Turner, Max N"]
[Black "Rogacewicz, Mikolaj"]
[Result "0-1"]
[ECO "B07"]
[WhiteElo "2026"]
[BlackElo "1925"]
[Annotator "NA"]
[PlyCount "110"]
[EventDate "2019.07.27"]
[EventType "swiss"]
[EventCountry "GBR"]
[SourceTitle "playchess.com"]
[Source "ChessBase"]
[SourceQuality "1"]
[TimeControl "40/5400+30:1800+30"]

1. e4 {[%emt 0:00:00]} d6 {[%emt 0:00:00]} 2. d4 {[%emt 0:00:00]} Nf6 {[%emt 0:00:00]} 3. Nc3 {[%emt 0:00:00]} e5 {[%emt 0:00:00]} 4. f3 {[%emt 0:00:00]} exd4 {[%emt 0:00:24]} 5. Qxd4 {[%emt 0:00:06]} Nc6 {[%emt 0:00:16]} 6. Bb5 {[%emt 0:00:08]} Bd7 {[%emt 0:00:44]} 7. Bxc6 {[%emt 0:00:05]} Bxc6 {[%emt 0:00:17]} 8. Bg5 {[%emt 0:00:29]} Be7 {[%emt 0:06:04]} 9. h4 {[%emt 0:01:04]} O-O {[%emt 0:10:41]} 10. O-O-O {[%emt 0:00:10]} Nd7 {[%emt 0:03:57]} 11. Bxe7 {[%emt 0:03:44]} Qxe7 {[%emt 0:00:06]} 12. Nd5 {[%emt 0:00:10]} Bxd5 {[%emt 0:00:46]} 13. Qxd5 {[%emt 0:00:19]} Qe5 {[%emt 0:01:39]} 14. Ne2 {[%emt 0:01:01]} Qxd5 {[%emt 0:00:42]} 15. Rxd5 {[%emt 0:00:06]} Rae8 {[%emt 0:03:27]} 16. Nc3 {[%emt 0:05:38]} Nb6 {[%emt 0:04:20]} 17. Rd4 {[%emt 0:07:56]} f5 {[%emt 0:20:00]} 18. Re1 {[%emt 0:01:01]} fxe4 {[%emt 0:02:53]} 19. Rdxe4 {[%emt 0:00:54]} Rxe4 {[%emt 0:00:28]} 20. Rxe4 {[%emt 0:00:08]} c6 {[%emt 0:01:38]} 21. b3 {[%emt 0:08:22]} d5 {[%emt 0:00:50]} 22. Re7 {[%emt 0:00:25]} Rf7 {[%emt 0:00:06]} 23. Re8+ {[%emt 0:00:05]} Rf8 {[%emt 0:00:04]} 24. Re7 {[%emt 0:05:08]} Rf7 {[%emt 0:00:04]} 25. Re8+ {[%emt 0:12:42]} Rf8 {[%emt 0:00:07]} 26. Rxf8+ {[%emt 0:00:40]} Kxf8 {[%emt 0:00:07]} 27. Kd2 {[%emt 0:00:05]} Ke7 {[%emt 0:00:15]} 28. Ke3 {[%emt 0:00:21]} Nd7 {[%emt 0:08:06]} 29. g4 {[%emt 0:03:35]} Ke6 {[%emt 0:05:55]} 30. Ne2 {[%emt 0:05:44]} c5 {[%emt 0:02:57]} 31. c3 {[%emt 0:13:40]} b5 {[%emt 0:02:24]} 32. Nf4+ {[%emt 0:05:24]} Ke5 {[%emt 0:03:43]} 33. Nd3+ {[%emt 0:00:16]} Kd6 {[%emt 0:01:07]} 34. b4 {[%emt 0:02:24]} c4 {[%emt 0:01:52]} 35. Nf4 {[%emt 0:01:56]} Ke5 {[%emt 0:08:49]} 36. Ne2 {[%emt 0:01:47]} a6 {[%emt 0:00:10]} 37. f4+ {[%emt 0:00:31]} Kd6 {[%emt 0:00:25]} 38. g5 {[%emt 0:03:50]} g6 {[%emt 0:02:15]} 39. Nd4 {[%emt 0:01:40]} Nf8 {[%emt 0:01:42]} 40. f5 {[%emt 0:01:14]} gxf5 {[%emt 0:00:37]} 41. Nxf5+ {[%emt 0:30:24]} Ke5 {[%emt 0:30:34]} 42. Nd4 {[%emt 0:06:26]} Nd7 {[%emt 0:00:00]} 43. h5 {[%emt 0:00:49]} Nf8 {[%emt 0:00:00]} 44. Kf3 {[%emt 0:03:06]} Nd7 {[%emt 0:00:00]} 45. Ke3 {[%emt 0:01:58]} Nf8 {[%emt 0:00:00]} 46. Nc6+ {[%emt 0:06:03]} Kf5 {[%emt 0:00:00]} 47. Nb8 {[%emt 0:00:20]} Kxg5 {[%emt 0:00:00]} 48. Nxa6 {[%emt 0:00:14]} Ne6 {[%emt 0:00:00]} 49. Nc5 {[%emt 0:00:04]} Nc7 {[%emt 0:00:00]} 50. a4 {[%emt 0:00:50]} bxa4 {[%emt 0:00:00]} 51. Nxa4 {[%emt 0:00:06]} Kxh5 {[%emt 0:00:00]} 52. Nb2 {[%emt 0:02:17]} Kg4 {[%emt 0:00:00]} 53. Kd4 {[%emt 0:00:14]} h5 {[%emt 0:00:00]} 54. Nd1 {[%emt 0:00:40]} Kf3 {[%emt 0:00:00]} 55. Ne3 {[%emt 0:00:31]} Nb5+ {[%emt 0:00:00]} 0-1

[Event "106th British-ch Major 2019"]
[Site "Torquay"]
[Date "2019.08.01"]
[Round "6.8"]
[White "Foster, Timothy"]
[Black "Gardiner, Eric D"]
[Result "1-0"]
[ECO "E51"]
[WhiteElo "1852"]
[BlackElo "1957"]
[Annotator "NA"]
[PlyCount "99"]
[EventDate "2019.07.27"]
[EventType "swiss"]
[EventCountry "GBR"]
[SourceTitle "playchess.com"]
[Source "ChessBase"]
[SourceQuality "1"]
[TimeControl "40/5400+30:1800+30"]

1. d4 {[%emt 0:00:00]} e6 {[%emt 0:03:13]} 2. c4 {[%emt 0:00:00]} Nf6 {[%emt 0:00:13]} 3. Nc3 {[%emt 0:00:10]} Bb4 {[%emt 0:00:13]} 4. e3 {[%emt 0:00:07]} O-O {[%emt 0:00:24]} 5. Nf3 {[%emt 0:00:26]} d5 {[%emt 0:04:02]} 6. Bd2 {[%emt 0:00:36]} b6 {[%emt 0:04:43]} 7. cxd5 {[%emt 0:00:16]} exd5 {[%emt 0:00:34]} 8. Bd3 {[%emt 0:02:23]} c5 {[%emt 0:03:03]} 9. h3 {[%emt 0:18:36]} Nc6 {[%emt 0:04:47]} 10. dxc5 {[%emt 0:08:57]} bxc5 {[%emt 0:01:44]} 11. O-O {[%emt 0:00:58]} Be6 {[%emt 0:05:04]} 12. a3 {[%emt 0:10:11]} Ba5 {[%emt 0:01:49]} 13. Rc1 {[%emt 0:05:11]} Rb8 {[%emt 0:08:43]} 14. Na4 {[%emt 0:08:59]} c4 {[%emt 0:02:16]} 15. Bc2 {[%emt 0:09:52]} Qe7 {[%emt 0:11:31]} 16. Bxa5 {[%emt 0:03:13]} Nxa5 {[%emt 0:00:45]} 17. Nd4 {[%emt 0:01:04]} Rfc8 {[%emt 0:04:19]} 18. Rb1 {[%emt 0:07:56]} Nd7 {[%emt 0:11:27]} 19. Qd2 {[%emt 0:01:03]} Nb7 {[%emt 0:04:11]} 20. Rfd1 {[%emt 0:00:47]} Nbc5 {[%emt 0:02:04]} 21. Nc3 {[%emt 0:02:06]} Ne5 {[%emt 0:04:22]} 22. f4 {[%emt 0:12:01]} Ned3 {[%emt 0:01:48]} 23. f5 {[%emt 0:02:22]} Bd7 {[%emt 0:02:07]} 24. Nxd5 {[%emt 0:00:31]} Qd6 {[%emt 0:01:26]} 25. Bxd3 {[%emt 0:00:17]} Qxd5 {[%emt 0:01:46]} 26. Bc2 {[%emt 0:00:20]} Qe5 {[%emt 0:03:17]} 27. Nf3 {[%emt 0:00:39]} Qe7 {[%emt 0:01:21]} 28. Qd4 {[%emt 0:01:43]} Re8 {[%emt 0:01:51]} 29. e4 {[%emt 0:01:20]} Bb5 {[%emt 0:02:11]} 30. e5 {[%emt 0:00:19]} Nd3 {[%emt 0:01:32]} 31. Bxd3 {[%emt 0:00:10]} cxd3 {[%emt 0:00:30]} 32. a4 {[%emt 0:00:55]} Bc6 {[%emt 0:00:29]} 33. Qxd3 {[%emt 0:01:38]} Bxf3 {[%emt 0:01:59]} 34. Qxf3 {[%emt 0:00:07]} Qxe5 {[%emt 0:00:34]} 35. Qf2 {[%emt 0:00:47]} a5 {[%emt 0:01:10]} 36. b3 {[%emt 0:00:40]} Rec8 {[%emt 0:03:08]} 37. Rd3 {[%emt 0:00:34]} h6 {[%emt 0:01:20]} 38. Re1 {[%emt 0:00:43]} Qc7 {[%emt 0:00:40]} 39. f6 {[%emt 0:00:51]} g5 {[%emt 0:01:43]} 40. Rde3 {[%emt 0:00:25]} Qc6 {[%emt 0:01:03]} 41. h4 {[%emt 0:01:45]} Re8 {[%emt 0:05:42]} 42. hxg5 {[%emt 0:00:44]} Rxe3 {[%emt 0:00:14]} 43. Qxe3 {[%emt 0:00:08]} Kf8 {[%emt 0:02:25]} 44. Qe7+ {[%emt 0:02:27]} Kg8 {[%emt 0:00:05]} 45. gxh6 {[%emt 0:01:29]} Qd5 {[%emt 0:00:43]} 46. Re5 {[%emt 0:11:31]} Qxb3 {[%emt 0:01:13]} 47. Rxa5 {[%emt 0:06:53]} Qd1+ {[%emt 0:04:08]} 48. Kh2 {[%emt 0:00:07]} Qg4 {[%emt 0:00:53]} 49. Qe1 {[%emt 0:00:56]} Kf8 {[%emt 0:05:01]} 50. Qg3 {[%emt 0:01:13]} 1-0

[Event "106th British-ch Major 2019"]
[Site "Torquay"]
[Date "2019.08.01"]
[Round "6.9"]
[White "Rushbrooke, Remy"]
[Black "Ethelontis, Alexandros N"]
[Result "1/2-1/2"]
[ECO "A46"]
[WhiteElo "1963"]
[BlackElo "2154"]
[Annotator "NA"]
[PlyCount "71"]
[EventDate "2019.07.27"]
[EventType "swiss"]
[EventCountry "GBR"]
[SourceTitle "playchess.com"]
[Source "ChessBase"]
[SourceQuality "1"]
[TimeControl "40/5400+30:1800+30"]

1. d4 {[%emt 0:01:47]} e6 {[%emt 0:00:00]} 2. Nf3 {[%emt 0:00:11]} Nf6 {[%emt 0:00:00]} 3. Bg5 {[%emt 0:00:06]} h6 {[%emt 0:00:25]} 4. Bh4 {[%emt 0:00:21]} g5 {[%emt 0:00:14]} 5. Bg3 {[%emt 0:00:08]} Ne4 {[%emt 0:00:08]} 6. Nbd2 {[%emt 0:01:39]} Nxg3 {[%emt 0:00:22]} 7. hxg3 {[%emt 0:00:08]} Bg7 {[%emt 0:00:41]} 8. e3 {[%emt 0:07:28]} d6 {[%emt 0:15:04]} 9. Bd3 {[%emt 0:01:46]} Nc6 {[%emt 0:02:27]} 10. c4 {[%emt 0:04:51]} Bd7 {[%emt 0:06:57]} 11. Ne4 {[%emt 0:04:24]} Qe7 {[%emt 0:23:35]} 12. a3 {[%emt 0:05:59]} a5 {[%emt 0:07:38]} 13. Rb1 {[%emt 0:06:38]} b6 {[%emt 0:07:24]} 14. Nc3 {[%emt 0:05:14]} g4 {[%emt 0:01:18]} 15. Nh4 {[%emt 0:09:12]} Qg5 {[%emt 0:00:26]} 16. Ne4 {[%emt 0:02:15]} Qh5 {[%emt 0:00:24]} 17. Kd2 {[%emt 0:06:42]} a4 {[%emt 0:02:37]} 18. Nf5 {[%emt 0:03:10]} Qxf5 {[%emt 0:05:07]} 19. Nxd6+ {[%emt 0:00:07]} cxd6 {[%emt 0:00:09]} 20. Bxf5 {[%emt 0:00:03]} exf5 {[%emt 0:00:10]} 21. b4 {[%emt 0:08:53]} axb3 {[%emt 0:04:48]} 22. Qxb3 {[%emt 0:00:12]} O-O {[%emt 0:03:06]} 23. Qxb6 {[%emt 0:02:39]} Rxa3 {[%emt 0:00:35]} 24. Qc7 {[%emt 0:03:08]} Ra2+ {[%emt 0:00:19]} 25. Kc3 {[%emt 0:01:25]} Rd8 {[%emt 0:06:39]} 26. Ra1 {[%emt 0:05:51]} Rxf2 {[%emt 0:02:44]} 27. Ra6 {[%emt 0:00:09]} Re8 {[%emt 0:02:38]} 28. Re1 {[%emt 0:03:57]} Nxd4 {[%emt 0:02:59]} 29. exd4 {[%emt 0:03:03]} Rxe1 {[%emt 0:00:37]} 30. Qxd7 {[%emt 0:07:37]} Re3+ {[%emt 0:01:37]} 31. Kb4 {[%emt 0:00:08]} Rb2+ {[%emt 0:00:41]} 32. Ka4 {[%emt 0:00:11]} Ra2+ {[%emt 0:02:12]} 33. Kb4 {[%emt 0:00:06]} Rb2+ {[%emt 0:00:35]} 34. Ka4 {[%emt 0:00:04]} Ra2+ {[%emt 0:01:39]} 35. Kb4 {[%emt 0:00:06]} Rb2+ {[%emt 0:00:30]} 36. Ka4 {[%emt 0:00:39]} 1/2-1/2

[Event "106th British-ch Major 2019"]
[Site "Torquay"]
[Date "2019.08.01"]
[Round "6.10"]
[White "Miller, Dominic"]
[Black "Brown, Tom"]
[Result "1-0"]
[ECO "D42"]
[WhiteElo "2140"]
[BlackElo "1953"]
[Annotator "NA"]
[PlyCount "89"]
[EventDate "2019.07.27"]
[EventType "swiss"]
[EventCountry "GBR"]
[SourceTitle "playchess.com"]
[Source "ChessBase"]
[SourceQuality "1"]
[TimeControl "40/5400+30:1800+30"]

1. e4 {[%emt 0:02:17]} c6 {[%emt 0:00:00]} 2. d4 {[%emt 0:00:53]} d5 {[%emt 0:00:06]} 3. exd5 {[%emt 0:00:04]} cxd5 {[%emt 0:00:08]} 4. c4 {[%emt 0:00:03]} Nf6 {[%emt 0:00:10]} 5. Nc3 {[%emt 0:00:05]} e6 {[%emt 0:01:02]} 6. Nf3 {[%emt 0:00:20]} Be7 {[%emt 0:00:21]} 7. cxd5 {[%emt 0:00:07]} Nxd5 {[%emt 0:00:24]} 8. Bd3 {[%emt 0:00:06]} Nc6 {[%emt 0:00:42]} 9. O-O {[%emt 0:00:31]} O-O {[%emt 0:01:59]} 10. Re1 {[%emt 0:01:02]} Bf6 {[%emt 0:01:58]} 11. a3 {[%emt 0:01:06]} Nce7 {[%emt 0:03:31]} 12. Ne4 {[%emt 0:02:25]} b6 {[%emt 0:02:33]} 13. Nxf6+ {[%emt 0:16:07]} Nxf6 {[%emt 0:00:20]} 14. Bg5 {[%emt 0:00:06]} Ned5 {[%emt 0:02:16]} 15. Ne5 {[%emt 0:03:35]} h6 {[%emt 0:03:28]} 16. Bh4 {[%emt 0:02:50]} Bb7 {[%emt 0:01:49]} 17. Qd2 {[%emt 0:01:51]} Qd6 {[%emt 0:05:42]} 18. Rad1 {[%emt 0:18:36]} Rac8 {[%emt 0:03:42]} 19. Bg3 {[%emt 0:05:18]} Qe7 {[%emt 0:07:07]} 20. Qe2 {[%emt 0:03:22]} Rfd8 {[%emt 0:12:03]} 21. Bb5 {[%emt 0:10:45]} Qf8 {[%emt 0:17:15]} 22. h3 {[%emt 0:08:51]} Ne7 {[%emt 0:02:51]} 23. Bh4 {[%emt 0:03:03]} g5 {[%emt 0:04:32]} 24. Bg3 {[%emt 0:05:17]} Nf5 {[%emt 0:01:27]} 25. Ng4 {[%emt 0:03:40]} Nxg4 {[%emt 0:13:25]} 26. Qxg4 {[%emt 0:00:14]} Nxg3 {[%emt 0:01:14]} 27. Qxg3 {[%emt 0:00:04]} Rc2 {[%emt 0:02:08]} 28. b4 {[%emt 0:04:32]} Qd6 {[%emt 0:02:15]} 29. Re5 {[%emt 0:01:12]} Kf8 {[%emt 0:05:52]} 30. h4 {[%emt 0:05:10]} f6 {[%emt 0:01:57]} 31. Qb3 {[%emt 0:00:55]} fxe5 {[%emt 0:00:55]} 32. Qxc2 {[%emt 0:00:01]} Qd5 {[%emt 0:00:51]} 33. Bf1 {[%emt 0:00:03]} Qe4 {[%emt 0:00:54]} 34. Qc7 {[%emt 0:00:03]} Rxd4 {[%emt 0:00:34]} 35. Qb8+ {[%emt 0:00:59]} Kg7 {[%emt 0:00:20]} 36. Qc7+ {[%emt 0:00:40]} Kf8 {[%emt 0:00:25]} 37. Rc1 {[%emt 0:00:39]} Qd5 {[%emt 0:00:28]} 38. Qb8+ {[%emt 0:00:09]} Kg7 {[%emt 0:01:16]} 39. Rc7+ {[%emt 0:00:03]} Kg6 {[%emt 0:00:47]} 40. Qg8+ {[%emt 0:01:36]} Kh5 {[%emt 0:00:40]} 41. Qf7+ {[%emt 0:30:50]} Kxh4 {[%emt 0:01:16]} 42. g3+ {[%emt 0:00:00]} Kg4 {[%emt 0:00:08]} 43. Be2+ {[%emt 0:00:00]} Kh3 {[%emt 0:01:03]} 44. Qh5+ {[%emt 0:00:00]} Rh4 {[%emt 0:00:20]} 45. Bg4# {[%emt 0:00:48]} 1-0

[Event "106th British-ch Major 2019"]
[Site "Torquay"]
[Date "2019.08.01"]
[Round "6.11"]
[White "Shaw, Peter"]
[Black "Ward, Andy"]
[Result "1/2-1/2"]
[ECO "A96"]
[WhiteElo "2068"]
[BlackElo "1822"]
[Annotator "NA"]
[PlyCount "86"]
[EventDate "2019.07.27"]
[EventType "swiss"]
[EventCountry "GBR"]
[SourceTitle "playchess.com"]
[Source "ChessBase"]
[SourceQuality "1"]
[TimeControl "40/5400+30:1800+30"]

1. d4 {[%emt 0:00:00]} e6 {[%emt 0:00:00]} 2. Nf3 {[%emt 0:00:00]} f5 {[%emt 0:00:00]} 3. g3 {[%emt 0:00:02]} Nf6 {[%emt 0:00:00]} 4. Bg2 {[%emt 0:00:05]} Be7 {[%emt 0:00:00]} 5. O-O {[%emt 0:00:07]} O-O {[%emt 0:00:00]} 6. c4 {[%emt 0:00:19]} d6 {[%emt 0:00:02]} 7. Nc3 {[%emt 0:00:20]} Ne4 {[%emt 0:00:05]} 8. Nxe4 {[%emt 0:00:22]} fxe4 {[%emt 0:00:06]} 9. Nd2 {[%emt 0:00:07]} d5 {[%emt 0:00:05]} 10. f3 {[%emt 0:00:12]} Nc6 {[%emt 0:00:05]} 11. fxe4 {[%emt 0:00:10]} Rxf1+ {[%emt 0:00:05]} 12. Kxf1 {[%emt 0:00:36]} dxc4 {[%emt 0:00:09]} 13. Nf3 {[%emt 0:00:21]} b5 {[%emt 0:00:12]} 14. Be3 {[%emt 0:00:31]} Qe8 {[%emt 0:00:20]} 15. d5 {[%emt 0:23:25]} Nb4 {[%emt 0:01:38]} 16. a3 {[%emt 0:02:56]} Na6 {[%emt 0:00:07]} 17. a4 {[%emt 0:13:30]} Bb7 {[%emt 0:11:57]} 18. axb5 {[%emt 0:21:33]} Nc5 {[%emt 0:00:05]} 19. Nd4 {[%emt 0:02:21]} exd5 {[%emt 0:00:27]} 20. exd5 {[%emt 0:00:21]} Qf7+ {[%emt 0:00:12]} 21. Kg1 {[%emt 0:00:50]} Bxd5 {[%emt 0:00:08]} 22. Bxd5 {[%emt 0:02:04]} Qxd5 {[%emt 0:00:07]} 23. Nc6 {[%emt 0:01:50]} Qxd1+ {[%emt 0:02:24]} 24. Rxd1 {[%emt 0:00:09]} Bd6 {[%emt 0:00:05]} 25. Bf4 {[%emt 0:04:36]} Bxf4 {[%emt 0:04:37]} 26. gxf4 {[%emt 0:00:02]} a6 {[%emt 0:00:08]} 27. Ra1 {[%emt 0:02:34]} Kf7 {[%emt 0:00:45]} 28. Kf2 {[%emt 0:13:46]} Ke6 {[%emt 0:03:44]} 29. Kf3 {[%emt 0:00:25]} a5 {[%emt 0:12:38]} 30. e4 {[%emt 0:04:50]} Nd3 {[%emt 0:06:46]} 31. Ke3 {[%emt 0:03:26]} Nxb2 {[%emt 0:02:32]} 32. Kd4 {[%emt 0:00:08]} a4 {[%emt 0:02:40]} 33. Ra3 {[%emt 0:00:31]} Nd3 {[%emt 0:05:51]} 34. f5+ {[%emt 0:00:24]} Kf6 {[%emt 0:00:02]} 35. Kxc4 {[%emt 0:00:14]} Ne5+ {[%emt 0:00:13]} 36. Kd5 {[%emt 0:01:52]} Nxc6 {[%emt 0:00:23]} 37. Kxc6 {[%emt 0:01:08]} Ra7 {[%emt 0:00:12]} 38. Kd5 {[%emt 0:00:24]} Ra5 {[%emt 0:00:36]} 39. Kd4 {[%emt 0:02:24]} g6 {[%emt 0:13:14]} 40. fxg6 {[%emt 0:00:10]} hxg6 {[%emt 0:00:03]} 41. Kc5 {[%emt 0:12:25]} Ke5 {[%emt 0:00:08]} 42. Kc6 {[%emt 0:02:41]} Kxe4 {[%emt 0:01:42]} 43. Kxc7 {[%emt 0:01:03]} Rxb5 {[%emt 0:00:10]} 1/2-1/2

[Event "106th British-ch Major 2019"]
[Site "Torquay"]
[Date "2019.08.01"]
[Round "6.12"]
[White "Taylor, William J"]
[Black "Modi, Kishan J"]
[Result "1-0"]
[ECO "B76"]
[WhiteElo "2062"]
[BlackElo "1923"]
[Annotator "NA"]
[PlyCount "89"]
[EventDate "2019.07.27"]
[EventType "swiss"]
[EventCountry "GBR"]
[SourceTitle "playchess.com"]
[Source "ChessBase"]
[SourceQuality "1"]
[TimeControl "40/5400+30:1800+30"]

1. e4 {[%emt 0:00:00]} c5 {[%emt 0:00:00]} 2. Nf3 {[%emt 0:00:00]} d6 {[%emt 0:00:00]} 3. d4 {[%emt 0:00:00]} cxd4 {[%emt 0:00:00]} 4. Nxd4 {[%emt 0:00:07]} Nf6 {[%emt 0:00:00]} 5. Nc3 {[%emt 0:00:06]} g6 {[%emt 0:00:02]} 6. Be2 {[%emt 0:00:35]} Bg7 {[%emt 0:00:21]} 7. Be3 {[%emt 0:00:10]} O-O {[%emt 0:00:12]} 8. Qd2 {[%emt 0:00:07]} Nc6 {[%emt 0:00:39]} 9. O-O-O {[%emt 0:00:12]} Bd7 {[%emt 0:00:58]} 10. f3 {[%emt 0:00:31]} Rc8 {[%emt 0:05:01]} 11. g4 {[%emt 0:01:14]} Ne5 {[%emt 0:06:45]} 12. h4 {[%emt 0:06:46]} h5 {[%emt 0:09:01]} 13. gxh5 {[%emt 0:10:45]} Nxh5 {[%emt 0:00:24]} 14. Rhg1 {[%emt 0:00:19]} Nc4 {[%emt 0:07:00]} 15. Bxc4 {[%emt 0:00:11]} Rxc4 {[%emt 0:00:05]} 16. Rg5 {[%emt 0:07:30]} Bf6 {[%emt 0:12:30]} 17. Rxh5 {[%emt 0:30:03]} gxh5 {[%emt 0:01:19]} 18. Rg1+ {[%emt 0:03:26]} Kh7 {[%emt 0:06:31]} 19. Qd3 {[%emt 0:00:43]} Rxc3 {[%emt 0:00:36]} 20. bxc3 {[%emt 0:19:59]} e5 {[%emt 0:01:22]} 21. Nf5 {[%emt 0:00:30]} Bxf5 {[%emt 0:02:58]} 22. exf5 {[%emt 0:00:01]} Qa5 {[%emt 0:11:44]} 23. Bg5 {[%emt 0:01:04]} Qxa2 {[%emt 0:04:29]} 24. Kd2 {[%emt 0:01:14]} Bxg5+ {[%emt 0:05:14]} 25. hxg5 {[%emt 0:07:07]} Qa6 {[%emt 0:05:09]} 26. Qxa6 {[%emt 0:02:19]} bxa6 {[%emt 0:00:06]} 27. Rh1 {[%emt 0:00:06]} Kg7 {[%emt 0:00:05]} 28. Rxh5 {[%emt 0:01:21]} a5 {[%emt 0:03:01]} 29. c4 {[%emt 0:01:25]} Rc8 {[%emt 0:03:54]} 30. Kd3 {[%emt 0:00:10]} a4 {[%emt 0:01:37]} 31. Rh1 {[%emt 0:00:35]} Rc6 {[%emt 0:10:04]} 32. Ra1 {[%emt 0:00:10]} Ra6 {[%emt 0:00:03]} 33. Kc3 {[%emt 0:00:21]} Kh7 {[%emt 0:00:16]} 34. Rh1+ {[%emt 0:00:34]} Kg7 {[%emt 0:00:04]} 35. Ra1 {[%emt 0:00:04]} Kh7 {[%emt 0:00:18]} 36. Ra3 {[%emt 0:01:16]} Rc6 {[%emt 0:00:39]} 37. Rxa4 {[%emt 0:01:27]} d5 {[%emt 0:00:58]} 38. Kd3 {[%emt 0:00:16]} dxc4+ {[%emt 0:01:04]} 39. Rxc4 {[%emt 0:00:13]} Ra6 {[%emt 0:00:23]} 40. Rc7 {[%emt 0:01:29]} Kg8 {[%emt 0:00:04]} 41. Ke4 {[%emt 0:31:20]} Ra3 {[%emt 0:30:27]} 42. c3 {[%emt 0:00:00]} Ra5 {[%emt 0:00:00]} 43. c4 {[%emt 0:00:00]} f6 {[%emt 0:00:00]} 44. gxf6 {[%emt 0:00:00]} Ra4 {[%emt 0:00:00]} 45. Kxe5 {[%emt 0:00:00]} 1-0